fUST/lending_fUST_20250509
["ID","MTS","AMOUNT","RATE_DAILY","PERIOD"]
[360342695,1746755045555,250.36002763,0.00010127,2]
[360342698,1746755136581,-300.0,0.0001023,2]
[360342699,1746755143262,-300.61983829,0.0001023,2]
[360342704,1746755156876,-430.9797275,0.0001023,2]
[360342707,1746755172440,-319.20889788,0.0001023,2]
[360342709,1746755187434,-199.02021691,0.0001023,2]
[360342711,1746755201938,-173.9505747,0.0001023,2]
[360342712,1746755216903,-202.00503541,0.0001023,2]
[360342717,1746755231908,-286.26545636,0.0001023,2]
[360342733,1746755298541,164487.20649534,0.00010135,2]
[360342734,1746755298567,103402.91133917,0.00010135,2]
[360342772,1746755432092,-305.47163,0.0001023,2]
[360342868,1746755438654,-2482.47862295,0.0001023,2]
[360342869,1746755438664,-497.9883989,0.0001023,2]
[360342980,1746755440405,-0.00657529,0.0001023,2]
[360343264,1746755446227,-581.16818167,0.0001023,2]
[360344360,1746755584394,-273.46405187,0.00010229,2]
[360344361,1746755597486,2869.05715572,0.00010135,2]
[360344367,1746755643180,-152.0,0.00010229,2]
[360344369,1746755651909,-148.0,0.00010229,2]
[360344375,1746755682456,-176.47898229,0.00010229,2]
[360344376,1746755682479,-117.52101771,0.00010229,2]
[360344377,1746755687554,-300.0,0.00010229,2]
[360344379,1746755698846,-82.47898229,0.00010229,2]
[360344380,1746755698869,-167.52101771,0.00010229,2]
[360344381,1746755711926,-300.0,0.00010228,2]
[360344382,1746755711967,-172.50880768,0.00010229,2]
[360344383,1746755711999,-167.06460083,0.00010229,2]
[360344384,1746755712203,-6.97313111,0.00010229,2]
[360344385,1746755714076,-158.9280775,0.00010229,2]
[360344386,1746755714098,-13.58073018,0.00010229,2]
[360344388,1746755727519,-296.0,0.00010228,2]
[360344389,1746755727544,-79.07054882,0.00010229,2]
[360344393,1746755742496,-229.03419288,0.00010229,2]
[360344394,1746755756914,-178.31452812,0.00010229,2]
[360344395,1746755756937,-92.651279,0.00010229,2]
[360344401,1746755772487,-183.0592021,0.00010228,2]
[360344405,1746755780168,250.0,0.00010129,2]
[360344406,1746755786876,-116.9407979,0.00010228,2]
[360344407,1746755786899,-72.91747887,0.00010229,2]
[360344408,1746755788003,-222.85066714,0.00010229,2]
[360344409,1746755788025,-27.14933286,0.00010229,2]
[360344410,1746755789881,3951.3317389,9.232e-05,2]
[360344412,1746755801883,-308.35550038,0.00010228,2]
[360344414,1746755816934,-157.77534564,0.00010228,2]
[360344415,1746755816958,-63.78839951,0.00010228,2]
[360344417,1746755831920,-300.0,0.00010227,2]
[360344418,1746755831942,-101.5938812,0.00010228,2]
[360344420,1746755848046,-198.4061188,0.00010228,2]
[360344421,1746755861919,-220.42153347,0.00010228,2]
[360344422,1746755861943,-10.43755198,0.00010228,2]
[360344425,1746755876953,-489.56244802,0.00010228,2]
[360344426,1746755876983,-40.24904074,0.00010228,2]
[360344428,1746755887615,250.0,0.00010128,2]
[360344431,1746755895713,-250.0,0.00010228,2]
[360344432,1746755906951,-182.08292402,0.00010228,2]
[360344434,1746755921889,-152.44023618,0.00010227,2]
[360344435,1746755922064,3000.0,0.0003013,60]
[360344437,1746755937587,-152.92905861,0.00010227,2]
[360344438,1746755938065,2295.24572456,0.00010127,2]
[360344440,1746755952483,-182.06551844,0.00010226,2]
[360344441,1746755967009,-117.93448156,0.00010226,2]
[360344442,1746755967032,-82.06551844,0.00010227,2]
[360344443,1746755973841,250.0,0.00010128,2]
[360344446,1746755978037,6000.0,0.00030137,60]
[360344448,1746755982602,-90.76986549,0.00010227,2]
[360344449,1746755982626,-259.80963112,0.00010227,2]
[360344451,1746755996977,-66.4819611,0.00010227,2]
[360344452,1746755997000,-233.5180389,0.00010227,2]
[360344459,1746756012051,-249.42050339,0.00010226,2]
[360344464,1746756026848,-50.57949661,0.00010226,2]
[360344465,1746756026871,-300.0,0.00010226,2]
[360344466,1746756026893,-100.55676618,0.00010226,2]
[360344472,1746756041919,-159.6273742,0.00010226,2]
[360344476,1746756056949,-68.77674035,0.00010226,2]
[360344477,1746756056972,-286.90009835,0.00010226,2]
[360344501,1746756072018,-192.29006077,0.00010225,2]
[360344511,1746756088096,-107.70993923,0.00010225,2]
[360344512,1746756088125,-55.6768387,0.00010226,2]
[360344517,1746756123688,-300.0,0.00010225,2]
[360344519,1746756153025,-159.88288019,0.00010225,2]
[360344520,1746756154021,-248.6732456,0.00010225,2]
[360344521,1746756154054,-76.15239136,0.00010225,2]
[360344522,1746756176963,-500.0,0.00010225,2]
[360344523,1746756177944,500.0,9.802e-05,2]
[360344524,1746756192067,-380.95639914,0.00010224,2]
[360344525,1746756208074,-250.0,0.00010224,2]
[360344527,1746756221932,-244.65217794,0.00010224,2]
[360344528,1746756237989,-124.02821376,0.00010224,2]
[360344529,1746756238013,-98.61797944,0.00010224,2]
[360344530,1746756252162,-222.00598474,0.00010224,2]
[360344534,1746756268028,-77.99401526,0.00010224,2]
[360344535,1746756268052,-121.60328495,0.00010225,2]
[360344538,1746756278773,1836.19657964,0.00010125,2]
[360344540,1746756280901,1836.19657964,0.00010153,2]
[360344541,1746756282635,-174.07127192,0.00010224,2]
[360344542,1746756282662,-48.33741261,0.00010224,2]
[360344543,1746756282820,1836.19657964,0.00010181,2]
[360344547,1746756296883,-356.75993441,0.00010209,2]
[360344555,1746756312666,-271.7021421,0.00010209,2]
[360344556,1746756327538,-228.2978579,0.00010209,2]
[360344558,1746756341847,-211.28827892,0.00010209,2]
[360344560,1746756357525,-241.97980148,0.00010209,2]
[360344563,1746756364338,-220.56302082,0.00010209,2]
[360344564,1746756371941,-221.41678066,0.00010209,2]
[360344566,1746756387968,-84.18876335,0.00010209,2]
[360344567,1746756387992,-211.2758877,0.00010221,2]
[360344568,1746756388018,-4.53534895,0.00010223,2]
[360344569,1746756414811,-500.0,0.00010223,2]
[360344570,1746756414835,-500.0,0.00010223,2]
[360344571,1746756414859,-373.42931777,0.00010223,2]
[360344572,1746756414882,-500.0,0.00010223,2]
[360344573,1746756414919,-1472.0708843,0.00010223,2]
[360344574,1746756414942,-500.0,0.00010223,2]
[360344575,1746756414964,-500.0,0.00010223,2]
[360344576,1746756414987,-500.0,0.00010223,2]
[360344577,1746756415022,-1472.0708843,0.00010223,2]
[360344578,1746756415044,-373.37011171,0.00010223,2]
[360344579,1746756415067,-500.0,0.00010223,2]
[360344580,1746756415091,-500.0,0.00010223,2]
[360344581,1746756415125,-1472.0708843,0.00010223,2]
[360344582,1746756415148,-500.0,0.00010223,2]
[360344583,1746756415172,-530.47391311,0.00010223,2]
[360344584,1746756415206,-1472.0708843,0.00010223,2]
[360344585,1746756415240,-500.0,0.00010223,2]
[360344586,1746756415265,-500.0,0.00010223,2]
[360344587,1746756415299,-1472.0708843,0.00010223,2]
[360344588,1746756415322,-500.0,0.00010223,2]
[360344589,1746756415346,-500.0,0.00010223,2]
[360344590,1746756415381,-1472.0708843,0.00010223,2]
[360344591,1746756415405,-500.0,0.00010223,2]
[360344592,1746756415441,-1472.0708843,0.00010223,2]
[360344593,1746756415475,-1418.23046731,0.00010223,2]
[360344594,1746756415511,6144.0,0.000102,2]
[360344595,1746756417338,-53.84041699,0.00010223,2]
[360344596,1746756417364,-196.15958301,0.00010223,2]
[360344606,1746756466045,-300.0,0.00010222,2]
[360344607,1746756466069,-303.84041699,0.00010223,2]
[360344608,1746756466109,-1472.0708843,0.00010223,2]
[360344609,1746756466133,-500.0,0.00010223,2]
[360344610,1746756466156,-500.0,0.00010223,2]
[360344611,1746756466188,-1472.0708843,0.00010223,2]
[360344612,1746756466210,-500.0,0.00010223,2]
[360344613,1746756466242,-1472.0708843,0.00010223,2]
[360344614,1746756466274,-1472.0708843,0.00010223,2]
[360344615,1746756466296,-500.0,0.00010223,2]
[360344616,1746756466328,-1472.0708843,0.00010223,2]
[360344617,1746756466350,-500.0,0.00010223,2]
[360344618,1746756466382,-1472.0708843,0.00010223,2]
[360344619,1746756466412,-1472.0708843,0.00010223,2]
[360344620,1746756466438,-500.0,0.00010223,2]
[360344621,1746756466470,-1472.0708843,0.00010223,2]
[360344622,1746756466494,-500.0,0.00010223,2]
[360344623,1746756466525,-1472.0708843,0.00010223,2]
[360344624,1746756466555,-1472.0708843,0.00010223,2]
[360344625,1746756466578,-500.0,0.00010223,2]
[360344626,1746756466608,-675.45074001,0.00010223,2]
[360344627,1746756478718,250.0,0.00010109,2]
[360344654,1746756613134,367.23931596,0.00010122,2]
[360344655,1746756615069,305.62378288,0.00010151,2]
[360344656,1746756615095,61.61553304,0.00010151,2]
[360344658,1746756617201,367.23931592,0.0001018,2]
[360344660,1746756627729,-367.23931592,0.00010208,2]
[360345102,1746756646825,-225.60821257,0.00010221,2]
[360345104,1746756646836,-500.0,0.00010221,2]
[360345106,1746756646845,-1455.97227006,0.00010221,2]
[360345108,1746756646855,-77.86542768,0.00010221,2]
[360345111,1746756646869,-1378.10684238,0.00010221,2]
[360345113,1746756646878,-500.0,0.00010221,2]
[360345115,1746756646888,-1455.97227006,0.00010221,2]
[360345117,1746756646897,-152.59667908,0.00010221,2]
[360345119,1746756646907,-1455.97227006,0.00010221,2]
[360345121,1746756646919,-711.42446901,0.00010221,2]
[360345337,1746756688582,650.62555087,0.00010122,2]
[360345343,1746756702414,187.0,0.000102,2]
[360345345,1746756708390,187.0,0.000102,2]
[360345354,1746756747009,-241.44207187,0.0001022,2]
[360345356,1746756762472,-58.55792813,0.0001022,2]
[360345357,1746756762494,-276.44207187,0.00010221,2]
[360345358,1746756766488,188.0,0.000301,63]
[360345360,1746756773107,576.44207186,0.00010122,2]
[360345361,1746756776909,500.0,9.799e-05,2]
[360345362,1746756776952,-290.7371516,0.0001022,2]
[360345363,1746756776978,-419.86244249,0.00010221,2]
[360345364,1746756793065,-196.46845104,0.0001022,2]
[360345366,1746756806970,-103.53154896,0.0001022,2]
[360345367,1746756806994,-255.84823034,0.00010221,2]
[360345368,1746756808756,-207.3797793,0.00010221,2]
[360345371,1746756822472,-161.3812113,0.00010221,2]
[360345374,1746756837476,-154.60494,0.00010223,2]
[360345375,1746756837501,-45.12212408,0.00010223,2]
[360345376,1746756849109,1327.55609982,0.00010127,2]
[360345377,1746756853524,188.0,0.000102,2]
[360345378,1746756853706,-294.24922224,0.00010222,2]
[360345380,1746756858894,-5.75077776,0.00010222,2]
[360345381,1746756858920,-193.19643992,0.00010223,2]
[360345382,1746756858943,-95.30200456,0.00010223,2]
[360345383,1746756867078,-143.01655944,0.00010223,2]
[360345384,1746756867099,-156.98344056,0.00010223,2]
[360345385,1746756882507,-81.33512344,0.00010223,2]
[360345386,1746756882534,-168.66487656,0.00010223,2]
[360345389,1746756898093,-69.65368744,0.00010223,2]
[360345390,1746756898116,-230.34631256,0.00010223,2]
[360345391,1746756911910,-300.0,0.00010222,2]
[360345392,1746756911935,-300.0,0.00010222,2]
[360345393,1746756911958,-120.87538888,0.00010222,2]
[360345396,1746756917516,1144.24922224,0.00010127,2]
[360345398,1746756926954,-177.87538888,0.00010222,2]
[360345399,1746756941995,-1.24922224,0.00010222,2]
[360345400,1746756942022,-320.87538888,0.00010222,2]
[360345401,1746756947631,183.61965796,0.00010124,2]
[360345402,1746756956960,-462.76566017,0.00010222,2]
[360345404,1746756971921,-300.0,0.00010221,2]
[360345405,1746756985899,720.87538888,0.00010127,2]
[360345406,1746756986225,243.39475229,0.00010003,2]
[360345419,1746757042179,-160.18888503,0.0001022,2]
[360345421,1746757043797,-139.81111497,0.0001022,2]
[360345422,1746757043819,-172.3291573,0.00010221,2]
[360345425,1746757058992,178.45494469,9.299e-05,2]
[360345426,1746757059018,1816.38839061,9.299e-05,2]
[360345443,1746757259600,-279.68387223,0.00010219,2]
[360345445,1746757274699,-300.0,0.00010218,2]
[360345446,1746757274723,-7.29947224,0.00010219,2]
[360345447,1746757276995,183.61965796,0.00010119,2]
[360345448,1746757290184,-400.0,0.00010219,2]
[360345450,1746757305811,-21.70052776,0.00010219,2]
[360345451,1746757305840,-178.29947224,0.00010219,2]
[360345452,1746757320183,-164.01665553,0.00010219,2]
[360345454,1746757335327,-300.0,0.00010218,2]
[360345457,1746757350250,-76.62364618,0.00010219,2]
[360345458,1746757350282,-223.37635382,0.00010219,2]
[360345462,1746757364625,-265.16246971,0.00010218,2]
[360345469,1746757380794,-28.09537205,0.00010218,2]
[360345470,1746757380817,-123.90462795,0.00010218,2]
[360345474,1746757394709,-178.45494469,0.00010217,2]
[360345476,1746757409691,-121.54505531,0.00010217,2]
[360345477,1746757409716,-72.03609102,0.00010218,2]
[360345478,1746757416252,372.03609102,0.00010119,2]
[360345482,1746757425216,-186.86794338,0.00010218,2]
[360345483,1746757426533,1635.0,0.000301,60]
[360345485,1746757452941,11980.0,0.000301,60]
[360345487,1746757476632,115701.78229884,0.0001012,2]
[360345489,1746757485015,250.0,0.00010118,2]
[360345513,1746757661898,10274.0,0.0003,60]
[360345515,1746757683230,-250.0,0.00010215,2]
[360345542,1746757783786,250.0,9.22e-05,2]
[360345570,1746757832363,-300.0,0.00010214,2]
[360345571,1746757832374,-205.28048923,0.00010215,2]
[360345572,1746757832384,-367.58764547,0.00010215,2]
[360345573,1746757832393,-1402.5498002,0.00010215,2]
[360345574,1746757832402,-1402.5498002,0.00010215,2]
[360345575,1746757832411,-1402.5498002,0.00010215,2]
[360345576,1746757832420,-1402.5498002,0.00010215,2]
[360345577,1746757832429,-1402.5498002,0.00010215,2]
[360345578,1746757832438,-1402.5498002,0.00010215,2]
[360345579,1746757832447,-1402.5498002,0.00010215,2]
[360345580,1746757832457,-1402.5498002,0.00010215,2]
[360345581,1746757832466,-1402.5498002,0.00010215,2]
[360345582,1746757832475,-1402.5498002,0.00010215,2]
[360345583,1746757832484,-1402.5498002,0.00010215,2]
[360345584,1746757832493,-1402.5498002,0.00010215,2]
[360345585,1746757832502,-1402.5498002,0.00010215,2]
[360345586,1746757832512,-1402.5498002,0.00010215,2]
[360345587,1746757832521,-1402.5498002,0.00010215,2]
[360345588,1746757832530,-1402.5498002,0.00010215,2]
[360345589,1746757832539,-1402.5498002,0.00010215,2]
[360345590,1746757832548,-1402.5498002,0.00010215,2]
[360345591,1746757832557,-695.10854459,0.00010215,2]
[360345593,1746757832568,-707.44125561,0.00010215,2]
[360345595,1746757832579,-1402.5498002,0.00010215,2]
[360345597,1746757832589,-1402.5498002,0.00010215,2]
[360345599,1746757832599,-1402.5498002,0.00010215,2]
[360345601,1746757832608,-1402.5498002,0.00010215,2]
[360345603,1746757832617,-1402.5498002,0.00010215,2]
[360345605,1746757832628,-1402.5498002,0.00010215,2]
[360345607,1746757832637,-215.96980064,0.00010215,2]
[360345608,1746757832650,-1186.57999956,0.00010215,2]
[360345609,1746757832659,-1402.5498002,0.00010215,2]
[360345611,1746757832668,-1402.5498002,0.00010215,2]
[360345613,1746757832677,-1402.5498002,0.00010215,2]
[360345615,1746757832687,-1402.5498002,0.00010215,2]
[360345617,1746757832697,-1402.5498002,0.00010215,2]
[360345618,1746757832706,-1402.5498002,0.00010215,2]
[360345619,1746757832715,-1402.5498002,0.00010215,2]
[360345620,1746757832724,-1402.5498002,0.00010215,2]
[360345622,1746757832733,-1402.5498002,0.00010215,2]
[360345624,1746757832743,-1136.25423484,0.00010215,2]
[360345628,1746757832774,600.0,0.0003,120]
[360345794,1746757840714,-266.29556536,0.00010215,2]
[360345796,1746757840725,-928.08429851,0.00010215,2]
[360345842,1746757841228,-13.04028542,0.00010215,2]
[360345844,1746757841240,-376.1391984,0.00010215,2]
[360345845,1746757841913,-85.28601787,0.00010215,2]
[360345846,1746757841949,-69.58719346,0.00010215,2]
[360346888,1746757869707,500.0,0.0003,120]
[360346890,1746757881214,500.0,0.0003,60]
[360346892,1746757951166,694.0,0.0003,60]
[360346918,1746758070015,10744.0,0.000102,2]
[360346987,1746758720364,-443.64234246,0.00010211,2]
[360346988,1746758720400,-2710.37817953,0.00010211,2]
[360346989,1746758720421,-300.0,0.00010211,2]
[360346990,1746758720459,-884.4592343,0.00010212,2]
[360346991,1746758720496,-884.4592343,0.00010212,2]
[360346992,1746758720534,-884.4592343,0.00010212,2]
[360346993,1746758720590,-884.4592343,0.00010212,2]
[360346994,1746758720629,-884.4592343,0.00010212,2]
[360346995,1746758720665,-884.4592343,0.00010212,2]
[360346996,1746758720701,-884.4592343,0.00010212,2]
[360346997,1746758720734,-884.4592343,0.00010212,2]
[360346998,1746758720769,-884.4592343,0.00010212,2]
[360346999,1746758720802,-884.4592343,0.00010212,2]
[360347000,1746758720836,-884.4592343,0.00010212,2]
[360347001,1746758720870,-884.4592343,0.00010212,2]
[360347002,1746758720906,-884.4592343,0.00010212,2]
[360347003,1746758720950,-884.4592343,0.00010212,2]
[360347004,1746758720992,-884.4592343,0.00010212,2]
[360347005,1746758721034,-884.4592343,0.00010212,2]
[360347006,1746758721074,-884.4592343,0.00010212,2]
[360347007,1746758721115,-884.4592343,0.00010212,2]
[360347008,1746758721156,-884.4592343,0.00010212,2]
[360347009,1746758721197,-884.4592343,0.00010212,2]
[360347010,1746758721235,-884.4592343,0.00010212,2]
[360347011,1746758721277,-884.4592343,0.00010212,2]
[360347012,1746758721317,-884.4592343,0.00010212,2]
[360347013,1746758721355,-884.4592343,0.00010212,2]
[360347014,1746758721396,-884.4592343,0.00010212,2]
[360347015,1746758721434,-884.4592343,0.00010212,2]
[360347016,1746758721474,-884.4592343,0.00010212,2]
[360347017,1746758721512,-884.4592343,0.00010212,2]
[360347018,1746758721553,-884.4592343,0.00010212,2]
[360347019,1746758721590,-884.4592343,0.00010212,2]
[360347020,1746758721628,-884.4592343,0.00010212,2]
[360347021,1746758721669,-884.4592343,0.00010212,2]
[360347022,1746758721710,-884.4592343,0.00010212,2]
[360347023,1746758721750,-884.4592343,0.00010212,2]
[360347024,1746758721792,-884.4592343,0.00010212,2]
[360347025,1746758721835,-884.4592343,0.00010212,2]
[360347026,1746758721880,-884.4592343,0.00010212,2]
[360347027,1746758721918,-884.4592343,0.00010212,2]
[360347028,1746758721957,-884.4592343,0.00010212,2]
[360347029,1746758721995,-884.4592343,0.00010212,2]
[360347030,1746758722036,-884.4592343,0.00010212,2]
[360347031,1746758722077,-283.15087171,0.00010212,2]
[360347046,1746758785064,-20000.0,0.00010211,2]
[360347048,1746758830940,500.0,9.537e-05,2]
[360347049,1746758831688,500.0,9.537e-05,2]
[360347050,1746758832440,350.46408947,9.537e-05,2]
[360347051,1746758832466,149.53591053,9.537e-05,2]
[360347052,1746758833204,500.0,9.537e-05,2]
[360347053,1746758833970,500.0,9.537e-05,2]
[360347054,1746758834736,500.0,9.537e-05,2]
[360347055,1746758835647,500.0,9.537e-05,2]
[360347057,1746758836508,500.0,9.537e-05,2]
[360347058,1746758837272,500.0,9.537e-05,2]
[360347059,1746758838023,217.05546893,9.537e-05,2]
[360347060,1746758838049,282.94453107,9.537e-05,2]
[360347062,1746758838811,500.0,9.537e-05,2]
[360347063,1746758839579,500.0,9.537e-05,2]
[360347064,1746758840331,500.0,9.537e-05,2]
[360347066,1746758841077,500.0,9.537e-05,2]
[360347067,1746758841913,500.0,9.537e-05,2]
[360347070,1746758882476,567.9513099,9.214e-05,2]
[360347071,1746758907454,500.0,9.537e-05,2]
[360347072,1746758908194,189.33758854,9.537e-05,2]
[360347073,1746758908219,310.66241146,9.537e-05,2]
[360347074,1746758908954,500.0,9.537e-05,2]
[360347075,1746758909711,500.0,9.537e-05,2]
[360347076,1746758910469,500.0,9.537e-05,2]
[360347077,1746758911228,500.0,9.537e-05,2]
[360347078,1746758912142,186.31153893,9.537e-05,2]
[360347079,1746758912170,313.68846107,9.537e-05,2]
[360347080,1746758912744,500.0,9.537e-05,2]
[360347081,1746758913505,500.0,9.537e-05,2]
[360347082,1746758914333,500.0,9.537e-05,2]
[360347083,1746758915075,500.0,9.537e-05,2]
[360347084,1746758915332,186.31153893,0.0001011,2]
[360347085,1746758916202,609.47,9.537e-05,2]
[360347369,1746759041077,-300.0,0.00010208,2]
[360347371,1746759041088,-5000.0,0.00010209,2]
[360347372,1746759041097,-5793.65638401,0.0001021,2]
[360347823,1746759046779,-7287.69041086,0.0001021,2]
[360347879,1746759047348,-9407.47626618,0.0001021,2]
[360347881,1746759047362,-27511.17693895,0.0001021,2]
[360347883,1746759047371,-1195.63864969,0.0001021,2]
[360347885,1746759047380,-298.29645976,0.0001021,2]
[360349168,1746759114308,1545.0423839,9.213e-05,2]
[360349170,1746759119194,50868.75012292,0.00030136,60]
[360349179,1746759183067,-202.32513648,0.00010206,2]
[360349181,1746759194651,-97.67486352,0.00010206,2]
[360349185,1746759230302,392.18341325,0.00010108,2]
[360349187,1746759244783,-173.68154185,0.00010206,2]
[360349191,1746759256063,-126.31845815,0.00010206,2]
[360349192,1746759273028,-207.95015264,0.00010206,2]
[360349193,1746759273054,-42.04984736,0.00010206,2]
[360349195,1746759284711,-449.46723146,0.00010206,2]
[360349198,1746759299795,-8.48292118,0.00010206,2]
[360349199,1746759299837,-327.29998118,0.00010206,2]
[360349201,1746759314850,-214.74986618,0.00010206,2]
[360349204,1746759325198,1000.0,0.00010107,2]
[360349207,1746759350863,250.0,0.00010107,2]
[360349212,1746759398574,421.50504782,0.00010107,2]
[360349239,1746759543281,-164.6234825,0.00010205,2]
[360349240,1746759547055,189.33758854,0.00010106,2]
[360349290,1746759826809,151.0,0.00027397,60]
[360349293,1746759827830,151.0,0.00027397,60]
[360349294,1746759828227,151.0,0.00027397,60]
[360349295,1746759828592,151.0,0.00027397,60]
[360349296,1746759829008,151.0,0.00027397,60]
[360349297,1746759829418,151.0,0.00027397,60]
[360349316,1746759984838,870.4,0.00030136,60]
[360349318,1746760031439,150.0,0.00030136,60]
[360349322,1746760084574,300.0,0.00010201,2]
[360349330,1746760113194,983.24476732,0.00010201,2]
[360349331,1746760113248,983.24476732,0.00010201,2]
[360349332,1746760113336,983.24476732,0.00010201,2]
[360349333,1746760113418,983.24476732,0.00010201,2]
[360349334,1746760113513,983.24476732,0.00010201,2]
[360349335,1746760113827,983.24476732,0.00010201,2]
[360349336,1746760113928,983.24476732,0.00010201,2]
[360349337,1746760114013,983.24476732,0.00010201,2]
[360349338,1746760114101,983.24476732,0.00010201,2]
[360349339,1746760114275,983.24476732,0.00010201,2]
[360349340,1746760114308,983.24476732,0.00010201,2]
[360349341,1746760114346,983.24476732,0.00010201,2]
[360349342,1746760114386,983.24476732,0.00010201,2]
[360349343,1746760114426,983.24476732,0.00010201,2]
[360349344,1746760114485,983.24476732,0.00010201,2]
[360349345,1746760114522,983.24476732,0.00010201,2]
[360349346,1746760114588,983.24476732,0.00010201,2]
[360349347,1746760114623,983.24476732,0.00010201,2]
[360349348,1746760114656,983.24476732,0.00010201,2]
[360349349,1746760114689,983.24476732,0.00010201,2]
[360349350,1746760114811,500.0,0.00010201,2]
[360349351,1746760114860,1060.6966935,0.00010201,2]
[360349352,1746760114921,1060.6966935,0.00010201,2]
[360349355,1746760114970,1060.6966935,0.00010201,2]
[360349356,1746760115012,172.70001882,0.00010201,2]
[360349357,1746760115057,1060.6966935,0.00010201,2]
[360349358,1746760115108,1060.6966935,0.00010201,2]
[360349359,1746760115156,1060.6966935,0.00010201,2]
[360349360,1746760115197,983.24476732,0.00010201,2]
[360349361,1746760115238,1060.6966935,0.00010201,2]
[360349362,1746760115284,1060.6966935,0.00010201,2]
[360349363,1746760115335,1060.6966935,0.00010201,2]
[360349364,1746760115387,1060.6966935,0.00010201,2]
[360349365,1746760115436,1060.6966935,0.00010201,2]
[360349366,1746760115480,1060.6966935,0.00010201,2]
[360349367,1746760115528,1060.6966935,0.00010201,2]
[360349368,1746760115574,1060.6966935,0.00010201,2]
[360349369,1746760115623,1060.6966935,0.00010201,2]
[360349370,1746760115670,1060.6966935,0.00010201,2]
[360349371,1746760115716,1060.6966935,0.00010201,2]
[360349372,1746760115772,1060.6966935,0.00010201,2]
[360349373,1746760115818,1060.6966935,0.00010201,2]
[360349374,1746760115856,1060.6966935,0.00010201,2]
[360349375,1746760115896,1060.6966935,0.00010201,2]
[360349376,1746760115936,1060.6966935,0.00010201,2]
[360349377,1746760115976,1060.6966935,0.00010201,2]
[360349378,1746760116019,1060.6966935,0.00010201,2]
[360349379,1746760116171,1060.6966935,0.00010201,2]
[360349380,1746760116213,1060.6966935,0.00010201,2]
[360349381,1746760116257,1060.6966935,0.00010201,2]
[360349382,1746760116296,1060.6966935,0.00010201,2]
[360349383,1746760116335,1060.6966935,0.00010201,2]
[360349384,1746760116373,1060.6966935,0.00010201,2]
[360349385,1746760116413,1060.6966935,0.00010201,2]
[360349386,1746760116455,1060.6966935,0.00010201,2]
[360349387,1746760116492,1060.6966935,0.00010201,2]
[360349388,1746760116530,1060.6966935,0.00010201,2]
[360349389,1746760116567,1060.6966935,0.00010201,2]
[360349390,1746760116612,1060.6966935,0.00010201,2]
[360349391,1746760116649,1060.6966935,0.00010201,2]
[360349392,1746760116693,1060.6966935,0.00010201,2]
[360349393,1746760116739,1060.6966935,0.00010201,2]
[360349394,1746760116778,1060.6966935,0.00010201,2]
[360349395,1746760116816,1060.6966935,0.00010201,2]
[360349396,1746760116860,1060.6966935,0.00010201,2]
[360349397,1746760116900,1060.6966935,0.00010201,2]
[360349398,1746760116952,1060.6966935,0.00010201,2]
[360349399,1746760116992,1060.6966935,0.00010201,2]
[360349400,1746760117035,1060.6966935,0.00010201,2]
[360349401,1746760117080,1060.6966935,0.00010201,2]
[360349402,1746760117120,1060.6966935,0.00010201,2]
[360349428,1746760174162,4761.78336845,0.00030137,60]
[360349429,1746760178545,1007.51498331,0.00010201,2]
[360349430,1746760178594,1007.51498331,0.00010201,2]
[360349431,1746760178637,1007.51498331,0.00010201,2]
[360349432,1746760178678,1007.51498331,0.00010201,2]
[360349433,1746760178724,1007.51498331,0.00010201,2]
[360349434,1746760178766,1007.51498331,0.00010201,2]
[360349435,1746760178810,1007.51498331,0.00010201,2]
[360349436,1746760178851,1007.51498331,0.00010201,2]
[360349437,1746760178899,1007.51498331,0.00010201,2]
[360349438,1746760178949,1007.51498331,0.00010201,2]
[360349439,1746760179179,1007.51498331,0.00010201,2]
[360349440,1746760179220,1007.51498331,0.00010201,2]
[360349441,1746760179261,1007.51498331,0.00010201,2]
[360349442,1746760179308,1007.51498331,0.00010201,2]
[360349443,1746760179351,1007.51498331,0.00010201,2]
[360349444,1746760179390,1007.51498331,0.00010201,2]